[Event "EYCC G10-ch 2024"]
[Site "Prague"]
[Date "2024.08.31"]
[Round "9.12"]
[White "Saltkhutsishvili, Sara"]
[Black "Trzcinska, Weronika"]
[Result "0-1"]
[ECO "C50"]
[WhiteElo "1535"]
[BlackElo "1490"]
[Annotator "NA RC COMBH"]
[PlyCount "102"]
[EventDate "2024.08.19"]
[EventType "swiss"]
[EventCountry "CZE"]
[SourceTitle "playchess.com"]
[Source "ChessBase"]
[SourceQuality "1"]
[TimeControl "5400+30"]

1. e4 {[%emt 0:02:33]} e5 {[%emt 0:00:00]} 2. Nf3 {[%emt 0:00:50]} Nc6 {[%emt 0:00:34]} 3. Bc4 {[%emt 0:00:53]} Be7 {[%emt 0:00:37]} 4. d4 {[%emt 0:02:51]} d6 {[%emt 0:05:10]} 5. dxe5 {[%emt 0:02:04]} Nxe5 {[%emt 0:01:23]} 6. Nxe5 {[%emt 0:02:18]} dxe5 {[%emt 0:00:13]} 7. Qh5 {[%emt 0:02:45]} g6 {[%emt 0:04:38]} 8. Qxe5 {[%emt 0:03:06]} Nf6 {[%emt 0:00:30]} 9. Nc3 {[%emt 0:01:05]} O-O {[%emt 0:01:27]} 10. O-O {[%emt 0:01:33]} Ng4 {[%emt 0:01:43]} 11. Qd5 {[%emt 0:02:29]} Bd6 {[%emt 0:00:54]} 12. h3 {[%emt 0:09:05]} Be6 {[%emt 0:01:27]} 13. Qb5 {[%emt 0:05:01]} a6 {[%emt 0:05:08]} 14. Qb3 {[%emt 0:02:29]} Bxc4 {[%emt 0:01:12]} 15. Qxc4 {[%emt 0:01:40]} Ne5 {[%emt 0:04:02]} 16. Qe2 {[%emt 0:04:10]} c6 {[%emt 0:01:35]} 17. Bh6 {[%emt 0:07:43]} Re8 {[%emt 0:00:42]} 18. Rad1 {[%emt 0:01:49]} Qe7 {[%emt 0:01:55]} 19. Kh1 {[%emt 0:12:27]} Bb4 {[%emt 0:01:27]} 20. Qe3 {[%emt 0:04:10]} Bxc3 {[%emt 0:05:14]} 21. bxc3 {[%emt 0:04:23]} f6 {[%emt 0:05:26]} 22. Bf4 {[%emt 0:09:17]} Nc4 {[%emt 0:03:24]} 23. Qd4 {[%emt 0:04:25]} Qxe4 {[%emt 0:01:31]} 24. Rfe1 {[%emt 0:02:01]} Qxd4 {[%emt 0:01:26]} 25. cxd4 {[%emt 0:01:22]} Na3 {[%emt 0:00:53]} 26. c3 {[%emt 0:02:20]} Kf7 {[%emt 0:00:13]} 27. Kg1 {[%emt 0:02:20]} Nb5 {[%emt 0:00:27]} 28. Bd2 {[%emt 0:00:18]} Re6 {[%emt 0:01:15]} 29. Rxe6 {[%emt 0:00:34]} Kxe6 {[%emt 0:00:06]} 30. Rb1 {[%emt 0:00:17]} Kd5 {[%emt 0:01:53]} 31. a4 {[%emt 0:00:40]} Nd6 {[%emt 0:00:29]} 32. Bf4 {[%emt 0:00:42]} b5 {[%emt 0:00:27]} 33. a5 {[%emt 0:00:56]} Nc4 {[%emt 0:00:31]} 34. Ra1 {[%emt 0:00:48]} Re8 {[%emt 0:00:16]} 35. Kf1 {[%emt 0:00:37]} g5 {[%emt 0:01:06]} 36. Bc1 {[%emt 0:01:10]} Nd6 {[%emt 0:00:30]} 37. f3 {[%emt 0:00:22]} Kc4 {[%emt 0:00:28]} 38. Bd2 {[%emt 0:00:52]} Nf5 {[%emt 0:00:34]} 39. Kf2 {[%emt 0:00:24]} h5 {[%emt 0:00:25]} 40. g3 {[%emt 0:00:33]} h4 {[%emt 0:00:28]} 41. g4 {[%emt 0:01:21]} Nd6 {[%emt 0:01:29]} 42. Ra3 {[%emt 0:01:17]} Kd3 {[%emt 0:00:47]} 43. Be1 {[%emt 0:00:41]} Nc4 {[%emt 0:00:27]} 44. Ra2 {[%emt 0:00:24]} Re3 {[%emt 0:01:43]} 45. Ra1 {[%emt 0:01:04]} Re2+ {[%emt 0:00:32]} 46. Kg1 {[%emt 0:01:00]} Ne3 {[%emt 0:00:42]} 47. Bf2 {[%emt 0:00:49]} Rd2 {[%emt 0:01:32]} 48. c4 {[%emt 0:00:56]} Nxc4 {[%emt 0:02:09]} 49. Rc1 {[%emt 0:00:58]} b4 {[%emt 0:01:39]} 50. Be1 {[%emt 0:00:52]} Rb2 {[%emt 0:01:11]} 51. Rd1+ {[%emt 0:00:43]} Ke2 {[%emt 0:02:07]} 0-1

[Event "EYCC G10-ch 2024"]
[Site "Prague"]
[Date "2024.08.31"]
[Round "9.13"]
[White "Nguyen Doan, Bao Anh Angelina"]
[Black "Kravchuk, Daria"]
[Result "1-0"]
[ECO "B34"]
[WhiteElo "1659"]
[BlackElo "1597"]
[Annotator "NA RC COMBH"]
[PlyCount "79"]
[EventDate "2024.08.19"]
[EventType "swiss"]
[EventCountry "CZE"]
[SourceTitle "playchess.com"]
[Source "ChessBase"]
[SourceQuality "1"]
[TimeControl "5400+30"]

1. e4 {[%emt 0:00:05]} c5 {[%emt 0:00:09]} 2. Nf3 {[%emt 0:00:04]} Nc6 {[%emt 0:00:08]} 3. d4 {[%emt 0:00:04]} cxd4 {[%emt 0:00:07]} 4. Nxd4 {[%emt 0:00:03]} Nf6 {[%emt 0:00:06]} 5. Nc3 {[%emt 0:00:07]} e5 {[%emt 0:00:05]} 6. Ndb5 {[%emt 0:00:04]} d6 {[%emt 0:00:12]} 7. Nd5 {[%emt 0:00:09]} Nxd5 {[%emt 0:00:13]} 8. exd5 {[%emt 0:00:04]} Nb8 {[%emt 0:00:38]} 9. a4 {[%emt 0:00:59]} Be7 {[%emt 0:01:01]} 10. Be2 {[%emt 0:02:02]} O-O {[%emt 0:03:07]} 11. O-O {[%emt 0:01:30]} a6 {[%emt 0:00:19]} 12. Na3 {[%emt 0:00:55]} f5 {[%emt 0:00:55]} 13. f4 {[%emt 0:01:34]} Nd7 {[%emt 0:03:04]} 14. Nc4 {[%emt 0:02:21]} Bf6 {[%emt 0:04:41]} 15. a5 {[%emt 0:03:12]} Nc5 {[%emt 0:12:23]} 16. Ra3 {[%emt 0:05:47]} b5 {[%emt 0:24:52]} 17. axb6 {[%emt 0:03:36]} Bb7 {[%emt 0:04:37]} 18. Be3 {[%emt 0:11:35]} Rc8 {[%emt 0:02:28]} 19. b4 {[%emt 0:10:54]} Ne4 {[%emt 0:01:42]} 20. Qd3 {[%emt 0:08:13]} exf4 {[%emt 0:06:28]} 21. Bxf4 {[%emt 0:02:48]} g5 {[%emt 0:04:40]} 22. Be3 {[%emt 0:04:18]} Qd7 {[%emt 0:13:27]} 23. Na5 {[%emt 0:04:56]} Rf7 {[%emt 0:08:01]} 24. c4 {[%emt 0:05:11]} Bg7 {[%emt 0:03:16]} 25. Bf3 {[%emt 0:06:18]} Qe8 {[%emt 0:04:03]} 26. Nxb7 {[%emt 0:03:39]} Rxb7 {[%emt 0:00:22]} 27. Rxa6 {[%emt 0:00:49]} g4 {[%emt 0:01:15]} 28. Bxe4 {[%emt 0:01:40]} fxe4 {[%emt 0:00:12]} 29. Qe2 {[%emt 0:01:32]} Be5 {[%emt 0:00:36]} 30. Qxg4+ {[%emt 0:03:46]} Kh8 {[%emt 0:00:36]} 31. Qe2 {[%emt 0:01:24]} Rg7 {[%emt 0:01:20]} 32. c5 {[%emt 0:01:47]} Qe7 {[%emt 0:00:54]} 33. Qf2 {[%emt 0:02:39]} Rcg8 {[%emt 0:00:28]} 34. Ra7 {[%emt 0:02:02]} Rxg2+ 35. Qxg2 {[%emt 0:00:18]} Rxg2+ {[%emt 0:00:38]} 36. Kxg2 {[%emt 0:00:06]} Qe8 {[%emt 0:00:29]} 37. Rff7 {[%emt 0:03:39]} Qg8+ {[%emt 0:00:53]} 38. Kf2 {[%emt 0:00:48]} Qd8 {[%emt 0:00:29]} 39. Bg5 {[%emt 0:03:07]} Qc8 {[%emt 0:00:28]} 40. b7 1-0

[Event "EYCC G10-ch 2024"]
[Site "Prague"]
[Date "2024.08.31"]
[Round "9.14"]
[White "Malcheva, Niya"]
[Black "Mierina, Liva"]
[Result "1-0"]
[ECO "B24"]
[WhiteElo "1551"]
[BlackElo "1599"]
[Annotator "NA RC COMBH"]
[PlyCount "72"]
[EventDate "2024.08.19"]
[EventType "swiss"]
[EventCountry "CZE"]
[SourceTitle "playchess.com"]
[Source "ChessBase"]
[SourceQuality "1"]
[TimeControl "5400+30"]

1. e4 {[%emt 0:00:02]} c5 {[%emt 0:00:04]} 2. Nc3 {[%emt 0:00:04]} Nc6 {[%emt 0:00:12]} 3. Bb5 {[%emt 0:00:06]} g6 {[%emt 0:00:30]} 4. Bxc6 {[%emt 0:00:10]} bxc6 {[%emt 0:00:15]} 5. Nf3 {[%emt 0:01:05]} Bg7 {[%emt 0:00:43]} 6. d3 {[%emt 0:00:27]} Nf6 {[%emt 0:01:11]} 7. O-O {[%emt 0:00:24]} O-O {[%emt 0:00:13]} 8. Re1 {[%emt 0:08:06]} Re8 {[%emt 0:03:38]} 9. h3 {[%emt 0:09:57]} e5 {[%emt 0:03:23]} 10. Be3 {[%emt 0:02:49]} d6 {[%emt 0:03:55]} 11. Nd2 {[%emt 0:01:32]} Rb8 {[%emt 0:06:01]} 12. Qc1 {[%emt 0:01:18]} Be6 {[%emt 0:06:44]} 13. Rf1 {[%emt 0:05:39]} Nh5 {[%emt 0:03:57]} 14. Ne2 {[%emt 0:05:07]} Qb6 {[%emt 0:04:53]} 15. b3 {[%emt 0:05:11]} d5 {[%emt 0:05:16]} 16. f3 {[%emt 0:04:25]} d4 {[%emt 0:09:17]} 17. Bf2 {[%emt 0:00:27]} Qd8 {[%emt 0:06:04]} 18. Nc4 {[%emt 0:02:36]} Bxc4 {[%emt 0:08:02]} 19. bxc4 {[%emt 0:00:19]} Qf6 {[%emt 0:09:03]} 20. Be1 {[%emt 0:03:46]} Rb7 {[%emt 0:06:10]} 21. f4 {[%emt 0:00:44]} exf4 {[%emt 0:03:08]} 22. Nxf4 {[%emt 0:01:30]} Nxf4 {[%emt 0:00:30]} 23. Rxf4 {[%emt 0:00:37]} Qd6 {[%emt 0:01:14]} 24. Bd2 {[%emt 0:02:07]} Re6 {[%emt 0:02:40]} 25. Rf2 {[%emt 0:07:47]} Rf6 {[%emt 0:01:33]} 26. Bf4 {[%emt 0:07:55]} Qd7 {[%emt 0:03:42]} 27. Bg3 {[%emt 0:01:53]} Rxf2 {[%emt 0:00:44]} 28. Bxf2 {[%emt 0:00:06]} Qd6 {[%emt 0:01:19]} 29. Qa3 {[%emt 0:05:05]} Qe5 {[%emt 0:03:36]} 30. h4 {[%emt 0:02:22]} Qh5 {[%emt 0:03:24]} 31. Re1 {[%emt 0:00:27]} Bh6 {[%emt 0:01:14]} 32. Qa6 {[%emt 0:07:29]} Rc7 {[%emt 0:00:29]} 33. Bg3 {[%emt 0:02:03]} Re7 {[%emt 0:02:39]} 34. Qc8+ {[%emt 0:00:56]} Kg7 {[%emt 0:01:10]} 35. Bd6 {[%emt 0:06:51]} Qxh4 {[%emt 0:00:29]} 36. g3 {[%emt 0:00:46]} Qf6 1-0